bitfinex-derivatives/quotes_ETHF0:USTF0_20250214
["timestamp","ask_amount","ask_price","bid_price","bid_amount"]
[1739501718670,2.39993,2695.3,2695.0,0.5752]
[1739501718973,1.658,2695.3,2695.0,0.5752]
[1739501719171,0.74196,2695.2,2695.0,0.5752]
[1739501719376,1.658,2695.3,2695.0,0.5752]
[1739501719581,0.74197,2695.1,2695.0,0.5752]
[1739501719768,0.74201,2695.0,2694.8,0.5811]
[1739501719970,1.29941,2695.0,2694.8,0.5811]
[1739501720166,0.74203,2694.9,2694.8,0.5811]
[1739501720667,1.29941,2695.0,2694.8,0.5811]
[1739501721068,0.5574,2695.0,2694.8,0.5811]
[1739501721279,0.74203,2694.9,2694.8,0.5811]
[1739501721574,0.74207,2694.8,2694.6,3.7565]
[1739501721777,0.74208,2694.7,2694.6,3.7565]
[1739501722273,1.658,2694.8,2694.6,3.7565]
[1739501722478,1.658,2694.8,2694.6,4.49861]
[1739501722875,1.658,2694.8,2694.7,0.74208]
[1739501723176,1.658,2695.1,2694.9,0.74201]
[1739501723383,1.658,2695.1,2695.0,1.2934]
[1739501724669,1.658,2695.4,2695.0,0.5514]
[1739501724872,1.658,2695.4,2695.1,0.74195]
[1739501725068,0.74197,2695.1,2695.0,0.5514]
[1739501725273,1.658,2695.4,2695.0,0.5514]
[1739501725574,0.74196,2695.2,2695.0,0.5514]
[1739501725775,2.89989378,2695.3,2694.9,3.2078]
[1739501725970,3.7662,2695.1,2694.7,0.5726]
[1739501726174,0.74205,2694.8,2694.7,0.5726]
[1739501726981,1.657,2694.9,2694.5,3.2078]
[1739501727173,1.3005,2694.7,2694.5,3.2078]
[1739501727373,0.5584,2694.7,2694.5,3.2078]
[1739501728080,0.5584,2694.7,2694.5,3.94993]
[1739501728278,0.5584,2694.7,2694.6,0.5726]
[1739501728668,0.74204,2694.9,2694.6,1.31471]
[1739501728875,3.2078,2695.1,2694.6,0.5726]
[1739501729274,0.74206,2694.8,2694.6,1.3147]
[1739501730074,0.74206,2694.8,2694.6,0.5726]
[1739501730382,0.74206,2694.8,2694.6,1.3147]
[1739501731079,0.74203,2694.9,2694.7,0.74208]
[1739501731381,0.74203,2694.9,2694.8,0.5568]
[1739501731976,0.5949,2695.0,2694.8,0.5568]
[1739501732179,3.2078,2695.1,2694.6,0.5726]
[1739501732376,0.5553,2694.9,2694.6,0.5726]
[1739501732978,0.74207,2694.8,2694.6,1.31471]
[1739501733284,0.74207,2694.8,2694.6,0.5726]
[1739501733777,0.74207,2694.8,2694.6,1.31471]
[1739501734176,1.657,2694.8,2694.5,0.5933]
[1739501734481,0.74211,2694.6,2694.5,0.5933]
[1739501735281,0.74214,2694.5,2694.4,0.00556545]
[1739501735477,1.30514,2694.5,2694.4,0.00556545]
[1739501736076,4.51294,2694.5,2694.4,0.00556545]
[1739501743387,3.94994,2694.5,2694.4,0.00556545]
[1739501743586,5.60694,2694.5,2694.4,0.00556545]
[1739501749385,10.8648,2694.5,2692.7,3.2078]
[1739501749586,6.10769378,2693.6,2693.1,0.5415]
[1739501749879,1.657,2693.5,2693.2,0.5752]
[1739501750484,1.657,2693.5,2693.3,0.74246]
[1739501750885,1.657,2693.5,2693.2,1.31768]
[1739501751279,1.657,2693.5,2693.2,0.5752]
[1739501751681,2.39943,2693.5,2693.2,0.5752]
[1739501752191,0.7425,2693.2,2693.1,0.00556545]
[1739501752791,1.883,2693.2,2693.1,0.00556545]
[1739501755888,0.5478,2693.2,2693.1,0.00556545]
[1739501756087,1.2903,2693.2,2693.1,0.00556545]
[1739501757393,1.8566,2693.2,2693.1,0.00556545]
[1739501757784,1.2903,2693.2,2693.1,0.00556545]
[1739501765095,4.4981,2693.2,2693.1,0.00556545]
[1739501767697,1.85638,2693.0,2692.1,3.2078]
[1739501767897,0.74274,2692.3,2692.2,0.5509]
[1739501768895,2.234,2692.4,2692.1,3.2078]
[1739501769096,0.74277,2692.2,2692.1,3.2078]
[1739501769396,2.234,2692.4,2692.1,3.2078]
[1739501769696,1.658,2692.3,2692.1,3.95059]
[1739501769895,2.89989378,2692.5,2692.2,0.5814]
[1739501770098,1.658,2692.3,2692.2,0.5814]
[1739501770486,2.40074,2692.3,2692.2,0.5814]
[1739501770689,1.658,2692.3,2692.2,0.5814]
[1739501770891,1.65263216,2692.3,2692.2,1.32417]
[1739501771098,0.74272,2692.4,2692.2,1.32417]
[1739501771294,2.40072,2692.4,2692.2,1.32417]
[1739501771495,2.40072,2692.4,2692.2,0.5814]
[1739501771696,1.658,2692.4,2692.2,0.5814]
[1739501772095,0.74274,2692.3,2692.2,0.5814]
[1739501772491,0.74277,2692.2,2692.1,3.2078]
[1739501773092,1.658,2692.4,2692.1,3.95059]
[1739501773093,2.40073,2692.4,2692.1,3.95059]
[1739501773288,0.74268,2692.6,2692.1,3.2078]
[1739501773489,1.658,2692.5,2692.1,3.2078]
[1739501773695,1.658,2692.5,2692.4,0.74272]
[1739501773896,0.5897,2692.7,2692.5,0.74266]
[1739501774102,1.658,2692.7,2692.6,1.1769]
[1739501774298,1.658,2692.9,2692.6,1.7395]
[1739501774499,1.658,2693.0,2692.8,0.74259]
[1739501774708,3.2078,2693.4,2692.6,1.7395]
[1739501774709,2.89989378,2693.4,2692.9,3.2078]
[1739501774894,6.10769378,2693.7,2692.9,3.2078]
[1739501775202,1.66356545,2693.6,2693.3,0.74246]
[1739501775402,1.66356545,2693.6,2693.4,1.7325]
[1739501777500,1.66356545,2693.6,2693.4,2.47493]
[1739501777902,0.74241,2693.5,2693.4,1.7325]
[1739501778106,2.40596545,2693.6,2693.4,1.7325]
[1739501778910,1.66356545,2693.6,2693.4,1.7325]
[1739501779302,1.66356545,2693.6,2693.4,1.1769]
[1739501779603,1.66356545,2693.6,2693.4,1.91933]
[1739501779798,1.66356545,2693.6,2693.5,0.74241]
[1739501780206,1.66356545,2693.6,2693.4,1.91933]
[1739501780601,1.66356545,2693.6,2693.5,0.74241]
[1739501780797,0.00556545,2693.6,2693.4,1.91933]
[1739501781821,0.00556545,2693.6,2693.4,1.1769]
[1739501782108,0.00556545,2693.6,2693.5,0.74241]
[1739501782305,0.00556545,2693.6,2693.4,1.91933]
[1739501782712,0.00556545,2693.6,2693.5,0.74241]
[1739501783106,0.00556545,2693.6,2693.4,1.91932]
[1739501783909,0.00556545,2693.6,2693.4,1.1769]
[1739501784111,0.00556545,2693.6,2693.5,0.74241]
[1739501784714,0.00556545,2693.6,2693.4,1.1769]
[1739501784911,0.00556545,2693.6,2693.4,1.91933]
[1739501785118,0.00556545,2693.6,2693.5,0.74241]
[1739501787223,0.7425,2693.2,2692.9,3.95037]
[1739501787421,0.5953,2693.5,2693.0,0.5797]
[1739501787726,0.00556545,2693.6,2693.4,0.74242]
[1739501788028,0.00556545,2693.6,2693.5,0.5797]
[1739501788322,0.74795545,2693.6,2693.5,0.5797]
[1739501788523,0.00556545,2693.6,2693.5,0.5797]
[1739501788925,0.00556545,2693.6,2693.5,1.32211]
[1739501789825,0.00556545,2693.6,2693.5,4.52991]
[1739501793428,0.00556545,2693.6,2693.5,3.7875]
[1739501794431,0.00556545,2693.6,2693.5,4.52991]
[1739501794828,1.657,2694.0,2693.9,0.7423]
[1739501795036,1.657,2694.3,2694.2,0.74222]
[1739501795627,1.657,2694.3,2694.0,0.74225]
[1739501795932,0.74222,2694.2,2693.9,1.15096545]
[1739501796132,1.657,2694.3,2693.9,1.15096545]
[1739501796528,2.39921,2694.3,2694.0,0.74226]
[1739501797029,2.39921,2694.3,2694.1,0.74224]
[1739501797429,1.657,2694.3,2694.1,0.74224]
[1739501798233,1.657,2694.3,2694.2,0.74222]
[1739501798435,2.25976545,2694.4,2694.0,0.5672]
[1739501798631,2.25976545,2694.4,2694.2,0.74221]
[1739501799337,2.25976545,2694.4,2694.0,0.5672]
[1739501799534,0.60276545,2694.4,2694.0,0.5672]
[1739501799731,0.00556545,2694.4,2694.3,0.74219]
[1739501807837,0.00556545,2694.4,2694.1,3.2078]
[1739501809243,0.00556545,2694.4,2694.1,3.95002]
[1739501810035,0.00556545,2694.4,2694.1,3.2078]
[1739501810241,0.00556545,2694.4,2694.2,0.74222]
[1739501811649,0.00556545,2694.4,2694.3,0.74219]
[1739501811950,0.00556545,2694.4,2694.2,0.7422]
[1739501813243,0.00556545,2694.4,2694.2,0.74222]
[1739501814845,0.00556545,2694.4,2694.3,0.74219]
[1739501815650,0.00556545,2694.4,2694.3,41.54219]
[1739501817549,0.00556545,2694.4,2694.3,0.74219]
[1739501818449,0.00556545,2694.4,2694.3,1.30069]
[1739501818645,3.3482,2695.0,2694.8,0.74204]
[1739501818847,1.118,2695.0,2694.6,3.2078]
[1739501819051,4.8638,2695.1,2694.7,1.1116]
[1739501819256,4.8638,2695.1,2695.0,0.742]
[1739501819557,4.8638,2695.1,2694.7,1.1116]
[1739501819745,5.60579,2695.1,2694.8,0.74204]
[1739501819941,5.60579,2695.1,2694.7,1.1116]
[1739501820151,4.8638,2695.1,2694.7,1.1116]
[1739501820350,4.8638,2695.1,2694.6,3.9499]
[1739501820544,0.5665,2695.0,2694.6,3.2078]
[1739501820755,1.3085,2695.0,2694.7,0.74207]
[1739501820950,0.5665,2695.0,2694.7,0.74207]
[1739501821254,0.5665,2695.0,2694.6,3.2078]
[1739501821650,1.3085,2695.0,2694.7,0.74207]
[1739501821849,4.8638,2695.1,2694.6,3.2078]
[1739501822049,2.78026545,2695.2,2694.6,3.2078]
[1739501822245,5.68015923,2695.2,2694.6,3.2078]
[1739501822450,5.68015923,2695.2,2695.1,0.74197]
[1739501822451,1.12426545,2695.2,2695.1,0.74197]
[1739501822845,0.55816545,2695.2,2695.1,0.74197]
[1739501823347,0.00556545,2695.2,2695.1,0.74197]
[1739501824354,1.656,2695.9,2695.0,1.6492]
[1739501824558,1.0875,2696.0,2695.7,0.74179]
[1739501824757,1.0875,2696.0,2695.7,0.74178]
[1739501825251,1.0875,2696.0,2695.6,1.1233]
[1739501825462,1.0875,2696.0,2695.7,0.7418]
[1739501826356,1.82923,2696.0,2695.6,2.41122]
[1739501826859,1.0875,2696.0,2695.7,0.7418]
[1739501827252,1.0875,2696.0,2695.6,2.41122]
[1739501827455,1.0875,2696.0,2695.6,1.1233]
[1739501827652,0.74176,2695.9,2695.5,3.21336545]
[1739501828151,0.74182,2695.7,2695.5,3.21336545]
[1739501828552,0.5799,2695.6,2695.5,3.21336545]
[1739501829157,0.5799,2695.6,2695.5,3.95522545]
[1739501829557,0.5799,2695.6,2695.5,3.21336545]
[1739501830462,0.7418,2695.8,2695.5,3.21336545]
[1739501830762,0.5767,2695.7,2695.5,3.21336545]
[1739501831261,1.31851,2695.7,2695.5,3.21336545]
[1739501832163,0.5767,2695.7,2695.5,3.21336545]
[1739501832362,0.5767,2695.7,2695.5,3.95519545]
[1739501832560,0.5767,2695.7,2695.6,0.74183]
[1739501832863,1.28333,2696.0,2695.7,0.7418]
[1739501833161,1.82713,2696.0,2695.7,0.7418]
[1739501833359,0.5438,2696.0,2695.9,0.74175]
[1739501833562,0.00556545,2696.1,2696.0,0.74172]
[1739501843864,0.00556545,2696.1,2695.8,3.7664]
[1739501844469,0.74174,2696.0,2695.8,3.2078]
[1739501844669,1.101,2695.9,2695.8,3.2078]
[1739501845966,1.101,2695.9,2695.7,0.7418]
[1739501846176,1.101,2695.9,2695.7,3.9496]
[1739501847463,1.101,2695.9,2695.7,3.2078]
[1739501847667,1.101,2695.9,2695.5,0.00556545]
[1739501847867,2.89989378,2695.8,2695.4,3.2078]
[1739501848172,0.7419,2695.4,2695.1,3.2078]
[1739501848371,1.1371,2695.3,2695.1,3.2078]
[1739501848573,1.7151,2695.3,2695.1,3.2078]
[1739501848970,0.74194,2695.2,2695.1,3.2078]
[1739501849166,0.74202,2695.0,2694.9,0.00556545]
[1739501853167,6.10769378,2695.2,2694.2,3.2078]
[1739501853373,6.10769378,2694.8,2694.2,3.2078]
[1739501853568,0.74217,2694.4,2694.1,1.29783]
[1739501853768,0.74221,2694.3,2694.1,0.5556]
[1739501854174,1.654,2694.6,2694.1,0.5556]
[1739501854378,0.74218,2694.4,2694.1,0.5556]
[1739501854675,0.00556545,2694.5,2694.1,0.5556]
[1739501854868,0.74771545,2694.5,2694.1,3.7634]
[1739501855069,0.74771545,2694.5,2694.2,0.74222]
[1739501855972,0.00556545,2694.5,2694.1,4.50563]
[1739501856169,0.00556545,2694.5,2694.1,3.7634]
[1739501856472,0.74771545,2694.5,2694.2,0.74221]
[1739501856871,0.74771545,2694.5,2694.1,3.7634]
[1739501857177,0.74218,2694.4,2694.1,4.50564]
[1739501858074,0.74771545,2694.5,2694.1,4.50564]
[1739501858375,0.74217,2694.4,2694.1,4.50564]
[1739501858773,0.74771545,2694.5,2694.1,3.7634]
[1739501858975,2.40171545,2694.5,2694.2,0.74222]
[1739501860073,0.00556545,2694.5,2694.1,3.7634]
[1739501860276,0.00556545,2694.5,2694.3,0.74218]
[1739501860575,0.00556545,2694.5,2694.4,0.5663]
[1739501860774,0.74770545,2694.5,2694.4,0.5663]
[1739501861379,0.74770545,2694.5,2694.1,3.7634]
[1739501861574,0.74770545,2694.5,2694.1,4.3297]
[1739501861771,0.74771545,2694.5,2694.2,0.74222]
[1739501861973,0.74771545,2694.5,2694.2,0.7422]
[1739501862277,0.00556545,2694.5,2694.3,0.74219]
[1739501862681,0.00556545,2694.5,2694.1,4.3297]
[1739501862878,0.7422,2694.3,2694.1,4.3297]
[1739501863079,0.74218,2694.4,2694.1,5.07194]
[1739501863882,0.74771545,2694.5,2694.2,0.74221]
[1739501864075,0.00556545,2694.5,2694.1,4.3297]
[1739501864281,0.00556545,2694.5,2694.3,0.74219]
[1739501864682,0.00556545,2694.5,2694.1,4.3297]
[1739501864883,0.00556545,2694.5,2694.4,0.74216]
[1739501865382,0.00556545,2694.5,2694.3,0.74218]
[1739501865575,0.00556545,2694.5,2694.4,3.2078]
[1739501865781,0.00556545,2694.5,2694.4,3.94996]
[1739501866485,0.00556545,2694.5,2694.4,4.51846]
[1739501867676,0.00556545,2694.5,2694.4,3.2078]
[1739501868083,0.00556545,2694.5,2694.1,5.64043]
[1739501868283,0.74218,2694.4,2694.1,5.64043]
[1739501868589,0.74771545,2694.5,2694.2,0.74221]
[1739501869581,0.74771545,2694.5,2694.1,5.64042]
[1739501869779,0.74218,2694.4,2694.1,5.64042]
[1739501870085,0.74772545,2694.5,2694.1,5.64042]
[1739501870486,0.00556545,2694.5,2694.1,4.8982]
[1739501870685,0.74219,2694.3,2694.1,4.8982]
[1739501870981,0.00556545,2694.5,2694.1,4.3297]
[1739501871187,0.5845,2694.2,2694.1,4.3297]
[1739501872288,1.32672,2694.2,2694.1,1.1219]
[1739501872783,0.5845,2694.2,2694.1,1.1219]
[1739501873377,0.74222,2694.2,2694.1,1.1219]
[1739501875387,0.74222,2694.2,2694.0,0.74226]
[1739501876295,1.28099,2694.4,2693.9,1.13556545]
[1739501876694,1.28099,2694.4,2694.2,0.7422]
[1739501877689,6.11325923,2694.5,2693.9,1.13556545]
[1739501877884,6.11325923,2694.5,2694.3,0.74219]
[1739501878090,4.86736545,2694.5,2694.4,0.74216]
[1739501878290,4.86736545,2694.5,2694.2,0.5453]
[1739501878489,5.60951545,2694.5,2694.2,0.5453]
[1739501878691,5.60951545,2694.5,2694.2,1.28751]
[1739501879094,5.60951545,2694.5,2694.3,0.5839]
[1739501879293,0.74216,2694.4,2694.3,0.5839]
[1739501879497,4.86736545,2694.5,2694.4,0.74216]
[1739501879690,4.86736545,2694.5,2694.4,1.30196]
[1739501879896,1.65956545,2694.5,2694.4,1.30196]
[1739501880583,1.65956545,2694.5,2694.4,4.50976]
[1739501881097,0.00556545,2694.5,2694.4,4.50976]
[1739501881389,1.654,2695.1,2694.9,0.74202]
[1739501881594,1.654,2695.1,2695.0,0.5386]
[1739501881794,4.55389378,2695.1,2694.6,0.7421]
[1739501881995,0.74203,2694.9,2694.6,0.7421]
[1739501882197,4.55389378,2695.1,2694.5,0.5386]
[1739501882497,5.30143923,2695.1,2694.7,0.74206]
[1739501882698,0.74204,2694.9,2694.5,1.28073]
[1739501883094,0.74204,2694.9,2694.6,0.74211]
[1739501883604,0.74201,2695.0,2694.7,1.32757]
[1739501883790,0.74201,2695.0,2694.8,0.5526]
[1739501884098,1.65956545,2695.1,2694.8,1.29464]
[1739501884887,2.40153545,2695.1,2694.8,1.29464]
[1739501885088,0.00556545,2695.1,2694.9,3.2078]
[1739501885299,0.00556545,2695.1,2695.0,1.3383]
[1739501887499,0.00556545,2695.1,2695.0,0.742]
[1739501887694,0.00556545,2695.1,2695.0,1.3101]
[1739501888197,0.00556545,2695.1,2694.8,3.7604]
[1739501888198,0.74754545,2695.1,2694.8,3.7604]
[1739501888495,1.65956545,2695.1,2694.5,3.2078]
[1739501888690,0.74207,2694.8,2694.5,3.2078]
[1739501888894,0.5812,2694.7,2694.4,1.1102]
[1739501889196,1.1249,2694.7,2694.5,0.74213]
[1739501889398,1.867,2694.7,2694.4,1.1102]
[1739501889792,1.1249,2694.7,2694.4,1.1102]
[1739501889997,1.867,2694.7,2694.4,1.1102]
[1739501890599,1.1249,2694.7,2694.4,1.1102]
[1739501890792,1.654,2694.8,2694.7,0.74207]
[1739501891199,0.5802,2695.0,2694.7,0.74207]
[1739501891602,0.74204,2694.9,2694.5,4.52332]
[1739501891803,0.74204,2694.9,2694.5,4.52333]
[1739501892002,0.5802,2695.0,2694.5,4.52333]
[1739501892200,3.2078,2694.9,2694.4,1.1102]
[1739501892506,3.2078,2694.9,2694.2,3.2078]
[1739501892507,0.74215,2694.5,2694.2,3.95]
[1739501892699,0.5802,2694.4,2694.2,3.2078]
[1739501892894,1.1428,2694.4,2694.2,3.2078]
[1739501893896,0.7422,2694.3,2694.0,0.5442]
[1739501894104,1.1428,2694.4,2694.0,0.5442]
[1739501894302,0.7422,2694.3,2694.0,0.5442]
[1739501894700,1.1428,2694.4,2694.0,0.5442]
[1739501894903,1.88498,2694.4,2694.0,1.28646]
[1739501895600,1.1428,2694.4,2694.0,1.28646]
[1739501895801,0.7422,2694.3,2694.0,1.28647]
[1739501896797,1.88497,2694.4,2694.1,0.74224]
[1739501897199,1.88497,2694.4,2694.0,1.28645]
[1739501898098,1.88497,2694.4,2693.9,0.00556545]
[1739501898099,1.1428,2694.4,2693.9,0.00556545]
[1739501898299,0.74224,2694.2,2693.9,0.74786545]
[1739501901108,1.88499,2694.4,2693.9,0.00556545]
[1739501901301,1.88499,2694.4,2694.0,0.74225]
[1739501901701,0.74221,2694.3,2694.0,0.74225]
[1739501902410,0.74223,2694.2,2693.9,0.74785545]
[1739501902810,1.1428,2694.4,2693.9,0.00556545]
[1739501903010,0.74226,2694.1,2693.9,0.00556545]
[1739501903315,0.5521,2694.0,2693.9,0.74786545]
[1739501903499,1.29437,2694.0,2693.9,0.00556545]
[1739501903811,0.5521,2694.0,2693.9,0.00556545]
[1739501904109,0.5521,2694.0,2693.9,0.74786545]
[1739501904603,0.5521,2694.0,2693.9,1.28756545]
[1739501906013,0.5521,2694.0,2693.9,0.00556545]
[1739501906014,1.29437,2694.0,2693.9,0.00556545]
[1739501906305,0.5521,2694.0,2693.9,0.00556545]
[1739501906508,0.5521,2694.0,2693.9,0.74786545]
[1739501907508,0.5521,2694.0,2693.9,0.00556545]
[1739501908015,1.29437,2694.0,2693.9,0.00556545]
[1739501908210,0.5521,2694.0,2693.9,0.74786545]
[1739501908608,0.5521,2694.0,2693.9,0.00556545]
[1739501909213,1.29437,2694.0,2693.9,0.00556545]
[1739501909816,0.5521,2694.0,2693.9,0.00556545]
[1739501910114,0.5521,2694.0,2693.9,0.74786545]
[1739501914616,1.29437,2694.0,2693.9,0.00556545]
[1739501915913,0.5521,2694.0,2693.9,0.00556545]
[1739501917920,1.29437,2694.0,2693.9,0.00556545]
[1739501918716,0.5521,2694.0,2693.9,0.00556545]
[1739501920424,1.29437,2694.0,2693.9,0.00556545]
[1739501920624,2.94837,2694.0,2693.9,0.00556545]
[1739501936641,2.89989378,2693.7,2693.4,3.2078]
[1739501936939,0.5716,2693.6,2693.5,0.74241]
[1739501937149,0.5716,2693.6,2693.5,1.32491]
[1739501937442,3.7671,2693.9,2693.5,1.32491]
[1739501937443,0.74234,2693.8,2693.5,1.32491]
[1739501937645,0.74234,2693.8,2693.6,0.74238]
[1739501937834,0.74234,2693.8,2693.5,0.5825]
[1739501938039,0.74234,2693.8,2693.5,1.32489]
[1739501938447,0.74238,2693.7,2693.5,0.5825]
[1739501938745,4.3387,2693.9,2693.5,0.5825]
[1739501938944,0.74237,2693.7,2693.5,0.5825]
[1739501940042,0.74239,2693.6,2693.5,0.5825]
[1739501943340,0.74241,2693.5,2693.4,4.3332]
[1739501943543,2.39641,2693.5,2693.4,3.2078]
[1739501944448,2.98001,2693.5,2693.4,3.2078]
[1739501944650,2.2376,2693.5,2693.4,3.2078]
[1739501944852,2.2376,2693.5,2693.4,5.11014]
[1739501945044,2.2376,2693.5,2693.4,5.70604]
[1739501945245,2.2376,2693.5,2693.4,4.9636]
[1739501945549,2.98001,2693.5,2693.4,4.9636]
[1739501946549,2.2376,2693.5,2693.4,4.9636]
[1739501946752,2.2376,2693.5,2693.4,5.70604]
[1739501947355,1.654,2693.5,2693.4,5.70604]
[1739501947751,1.654,2693.5,2693.4,3.2078]
[1739501947950,2.39641,2693.5,2693.4,3.2078]
[1739501949854,1.654,2693.5,2693.4,3.95024]
[1739501950549,1.654,2693.5,2693.4,3.2078]
[1739501950750,1.654,2693.5,2693.4,3.95024]
[1739501952152,1.654,2693.5,2693.4,3.2078]
[1739501952358,2.39641,2693.5,2693.4,3.2078]
[1739501952658,1.654,2693.5,2693.4,3.2078]
[1739501953157,1.654,2693.5,2693.4,3.95024]
[1739501953561,2.39641,2693.5,2693.4,3.2078]
[1739501954656,1.654,2693.5,2693.4,3.2078]
[1739501955260,2.39641,2693.5,2693.4,3.2078]
[1739501958056,2.39641,2693.5,2693.4,3.95024]
[1739501958458,1.654,2693.5,2693.4,3.95024]
[1739501959761,2.39641,2693.5,2693.4,3.2078]
[1739501961660,2.39641,2693.5,2693.3,0.74803545]
[1739501961862,0.74244,2693.4,2693.3,0.74803545]
[1739501962257,0.74244,2693.4,2693.3,0.00556545]
[1739501962664,0.74244,2693.4,2693.3,0.74803545]
[1739501962867,1.654,2693.5,2693.4,0.74244]
[1739501964062,0.7424,2693.6,2693.4,0.74244]
[1739501964273,2.90545923,2693.7,2693.6,0.74239]
[1739501964274,0.00556545,2693.7,2693.6,0.74239]
[1739501964470,1.65856545,2693.7,2693.6,0.74239]
[1739501965061,0.00556545,2693.7,2693.6,0.74239]
[1739501965561,0.74239,2693.6,2693.4,0.74243]
[1739501965755,3.44965923,2693.7,2693.3,0.00556545]
[1739501965954,0.74243,2693.5,2693.3,0.74803545]
[1739501966158,0.00556545,2693.7,2693.5,0.74239]
[1739501966359,0.00556545,2693.7,2693.6,0.5588]
[1739501966767,0.00556545,2693.7,2693.6,1.30119]
[1739501967263,0.00556545,2693.7,2693.6,0.5588]
[1739501967264,0.74792545,2693.7,2693.6,0.5588]
[1739501969360,0.00556545,2693.7,2693.6,0.5588]
[1739501969561,0.74792545,2693.7,2693.6,1.30119]
[1739501969768,0.74792545,2693.7,2693.6,0.5588]
[1739501970158,0.74792545,2693.7,2693.3,3.95582545]
[1739501970159,2.90545923,2693.7,2693.3,3.95582545]
[1739501970363,0.74243,2693.5,2693.4,0.5451]
[1739501970767,1.1299,2693.6,2693.3,0.00556545]
[1739501970960,4.20273378,2693.4,2693.3,0.00556545]
[1739501971163,4.62939315,2693.4,2693.3,0.00556545]
[1739501971371,0.74255,2693.0,2692.8,0.7426]
[1739501971566,2.39555,2693.0,2692.8,0.7426]
[1739501971777,1.653,2693.0,2692.8,0.7426]
[1739501972067,4.8608,2693.3,2692.7,0.5496]
[1739501972271,2.39547,2693.3,2692.9,3.2078]
[1739501972573,2.39547,2693.3,2693.1,0.74252]
[1739501972762,2.39547,2693.3,2693.2,1.7734]
[1739501972763,1.653,2693.3,2693.2,1.7734]
[1739501973071,4.20275378,2693.4,2693.2,1.7734]
[1739501973371,4.20275378,2693.4,2693.2,2.51589]
[1739501973372,5.85575378,2693.4,2693.2,2.51589]
[1739501973765,5.11329378,2693.4,2692.9,3.2078]
[1739501973965,5.11329378,2693.4,2692.9,0.74257]
[1739501973966,0.74251,2693.2,2692.9,0.74257]
[1739501974170,0.74253,2693.1,2692.8,0.74259]
[1739501974564,0.74252,2693.2,2692.9,0.74257]
[1739501974968,5.11329378,2693.4,2692.7,1.7734]
[1739501975369,0.74251,2693.2,2692.9,0.74257]
[1739501975570,3.64243378,2693.1,2692.8,0.74259]
[1739501975770,0.5596,2693.0,2692.8,0.74259]
[1739501977165,0.5596,2693.0,2692.7,1.7734]
[1739501977371,1.87797,2693.0,2692.7,2.51603]
[1739501977777,1.1354,2693.0,2692.7,1.7734]
[1739501977966,2.39559,2692.9,2692.7,1.7734]
[1739501978374,1.653,2692.9,2692.7,2.51603]
[1739501978569,1.653,2692.9,2692.8,0.74261]
[1739501978878,1.6753,2693.0,2692.8,0.74261]
[1739501979068,1.653,2693.0,2692.9,3.95038]
[1739501980875,0.74248,2693.3,2692.9,3.2078]
[1739501981066,2.39548,2693.3,2693.0,0.74253]
[1739501981569,2.39548,2693.3,2693.1,0.5509]
[1739501981970,0.7425,2693.2,2693.1,0.5509]
[1739501982573,4.8608,2693.3,2692.7,0.5871]
[1739501982780,0.74251,2693.2,2693.0,0.5509]
[1739501983278,1.653,2693.3,2692.8,0.5774]
[1739501983279,3.46239378,2693.1,2692.8,0.5774]
[1739501983475,3.46239378,2693.1,2692.8,1.31999]
[1739501983476,1.1569,2693.0,2692.8,1.31999]
[1739501983675,3.46239378,2693.1,2692.9,0.74256]
[1739501984069,0.5625,2693.1,2692.9,0.74256]
[1739501984583,1.653,2693.3,2692.9,3.2078]
[1739501984780,1.653,2693.2,2693.1,0.74252]
[1739501984976,1.653,2693.2,2692.9,3.2078]
[1739501985177,2.39551,2693.2,2692.9,3.2078]
[1739501985682,0.74254,2693.1,2692.9,3.2078]
[1739501985874,1.653,2693.2,2692.8,0.5774]
[1739501986072,1.653,2693.2,2692.8,1.31999]
[1739501986380,0.74255,2693.0,2692.8,1.31999]
[1739501986575,0.74255,2693.0,2692.8,0.5774]
[1739501986784,0.74254,2693.1,2692.8,1.32]
[1739501987082,0.74256,2693.0,2692.8,0.5774]
[1739501987479,0.5804,2692.9,2692.8,1.32001]
[1739501987976,0.5804,2692.9,2692.8,0.5774]
[1739501988184,0.5804,2692.9,2692.8,1.32001]
[1739501988375,2.39551,2693.2,2692.9,0.74257]
[1739501988574,2.2334,2693.2,2693.0,0.74254]
[1739501989279,2.2334,2693.2,2693.1,0.74252]
[1739501991183,2.9759,2693.2,2693.0,0.74254]
[1739501991985,2.2334,2693.2,2692.9,3.2078]
[1739501992189,0.74254,2693.1,2692.9,3.2078]
[1739501992379,2.97591,2693.2,2692.9,3.95037]
[1739501993884,2.2334,2693.2,2692.9,3.95037]
[1739501994192,0.74252,2693.1,2692.9,3.95037]
[1739501994685,6.71540503,2693.0,2692.1,3.2078]
[1739501994892,0.05830717,2692.9,2692.2,0.5777]
[1739501995078,0.74274,2692.3,2692.2,0.5777]
[1739501995481,0.74274,2692.3,2692.0,1.1406]
[1739501995482,0.74274,2692.3,2692.0,0.5697]
[1739501995683,1.653,2692.4,2692.0,0.5697]
[1739501995684,0.568,2692.2,2692.1,0.7428]
[1739501995887,0.568,2692.2,2692.1,0.5777]
[1739501998689,1.653,2692.4,2692.1,0.5777]
[1739501998895,1.653,2692.4,2692.1,1.90999]
[1739501999202,1.653,2692.4,2692.2,0.74276]
[1739501999394,1.653,2692.4,2692.1,1.90999]
[1739501999896,1.653,2692.4,2692.2,0.74275]
[1739502000297,2.89989378,2693.0,2692.1,4.375]
[1739502000496,3.2078,2693.2,2692.4,3.2078]
[1739502000703,0.7426,2692.9,2692.7,3.2078]
[1739502001385,1.2849,2692.9,2692.7,3.2078]
[1739502001812,1.654,2692.8,2692.4,3.2078]